[Event "MČR 2022 blesk"]
[Site "Turnov, Czech Republic"]
[Date "2022.09.10"]
[Round "11.5"]
[White "Dolezal, Radoslav"]
[Black "Polak, Tomas"]
[Result "1-0"]
[TimeControl "2x 3 min + 2s/move"]
[WhiteElo "2347"]
[BlackElo "2475"]

1. d4 {[%clk 00:03:01]} {[%emt 00:00:14]} Nf6 {[%clk 00:03:03]} 2. Bg5 {[%clk
00:03:02]} e6 {[%clk 00:03:02]} 3. e3 {[%clk 00:03:03]} h6 {[%clk 00:03:00]}
{[%emt 00:00:08]} 4. Bh4 {[%clk 00:03:04]} b6 {[%clk 00:03:00]} 5. f4 {[%clk
00:03:04]} Bb7 {[%clk 00:02:59]} {[%emt 00:00:08]} 6. Nf3 {[%clk 00:03:05]} Be7
{[%clk 00:02:59]} 7. Bd3 {[%clk 00:03:04]} {[%emt 00:00:05]} Ne4 {[%clk
00:02:53]} {[%emt 00:00:05]} 8. Bxe7 Qxe7 {[%clk 00:02:54]} 9. Nbd2 {[%clk
00:02:51]} {[%emt 00:00:10]} Nxd2 {[%clk 00:02:45]} {[%emt 00:00:12]} 10. Qxd2
{[%clk 00:02:52]} Bxf3 {[%clk 00:02:34]} {[%emt 00:00:22]} 11. gxf3 {[%clk
00:02:53]} Qh4+ {[%clk 00:02:35]} 12. Qf2 {[%clk 00:02:40]} {[%emt 00:00:09]}
Qxf2+ {[%clk 00:02:34]} {[%emt 00:00:06]} 13. Kxf2 {[%clk 00:02:41]} Nc6 {[%clk
00:02:21]} {[%emt 00:00:13]} 14. c3 {[%clk 00:02:42]} Ke7 {[%clk 00:02:10]}
{[%emt 00:00:20]} 15. f5 {[%clk 00:02:35]} {[%emt 00:00:05]} e5 {[%clk
00:02:00]} {[%emt 00:00:10]} 16. Rag1 {[%clk 00:02:35]} {[%emt 00:00:06]} Kf6
{[%clk 00:01:57]} {[%emt 00:00:09]} 17. Rg4 {[%clk 00:02:31]} Rae8 {[%clk
00:01:47]} {[%emt 00:00:13]} 18. Rhg1 {[%clk 00:02:31]} {[%emt 00:00:05]} Rhg8
{[%clk 00:01:47]} 19. Bb5 {[%clk 00:02:07]} {[%emt 00:00:22]} Re7 {[%clk
00:01:38]} {[%emt 00:00:12]} 20. Bxc6 {[%clk 00:02:00]} {[%emt 00:00:08]} dxc6
{[%clk 00:01:38]} 21. dxe5+ {[%clk 00:01:43]} {[%emt 00:00:20]} Rxe5 {[%clk
00:01:35]} {[%emt 00:00:06]} 22. e4 {[%clk 00:01:45]} Rb5 {[%clk 00:01:01]}
{[%emt 00:00:46]} 23. Rb1 {[%clk 00:01:45]} Rd8 {[%clk 00:01:01]} 24. Ke3
{[%clk 00:01:45]} Re8 {[%clk 00:00:59]} {[%emt 00:00:04]} 25. Kd3 {[%clk
00:01:35]} {[%emt 00:00:07]} Rd8+ {[%clk 00:00:58]} {[%emt 00:00:07]} 26. Kc2
{[%clk 00:01:36]} Re5 {[%clk 00:00:55]} {[%emt 00:00:05]} 27. Rbg1 {[%clk
00:01:32]} {[%emt 00:00:06]} Rg8 {[%clk 00:00:55]} {[%emt 00:00:09]} 28. Rd1
{[%clk 00:01:33]} Re7 {[%clk 00:00:50]} {[%emt 00:00:05]} 29. Rg2 {[%clk
00:01:22]} {[%emt 00:00:13]} Ke5 {[%clk 00:00:50]} 30. Rdg1 {[%clk 00:01:14]}
{[%emt 00:00:06]} f6 {[%clk 00:00:34]} {[%emt 00:00:23]} 31. Kd3 {[%clk
00:01:06]} {[%emt 00:00:06]} Rd8+ {[%clk 00:00:29]} {[%emt 00:00:06]} 32. Ke3
{[%clk 00:01:08]} Rg8 {[%clk 00:00:18]} {[%emt 00:00:16]} 33. Rd1 {[%clk
00:00:55]} {[%emt 00:00:15]} g5 {[%clk 00:00:10]} {[%emt 00:00:11]} 34. fxg6
{[%clk 00:00:55]} f5 {[%clk 00:00:11]} {[%emt 00:00:04]} 35. f4+ {[%clk
00:00:48]} {[%emt 00:00:09]} Kf6 {[%clk 00:00:12]} 36. e5+ Ke6 {[%clk
00:00:12]} 37. h4 {[%clk 00:00:48]} {[%emt 00:00:09]} h5 {[%clk 00:00:12]} 38.
Rg5 {[%clk 00:00:49]} Reg7 {[%clk 00:00:13]} 39. Rdg1 {[%clk 00:00:47]} {[%emt
00:00:05]} a5 {[%clk 00:00:12]} 40. Rxh5 {[%clk 00:00:47]} {[%emt 00:00:04]}
Rxg6 {[%clk 00:00:13]} 41. Rxg6+ {[%clk 00:00:47]} Rxg6 {[%clk 00:00:14]} 42.
Rg5 {[%clk 00:00:49]} Rh6 {[%clk 00:00:15]} {[%emt 00:00:11]} 43. h5 {[%clk
00:00:50]} Rh7 {[%clk 00:00:17]} 44. Rg6+ {[%clk 00:00:48]} Kd5 {[%clk
00:00:17]} 45. h6 {[%clk 00:00:49]} b5 {[%clk 00:00:16]} {[%emt 00:00:09]} 46.
Kf3 {[%clk 00:00:42]} {[%emt 00:00:05]} c5 {[%clk 00:00:15]} 47. Kg3 {[%clk
00:00:41]} {[%emt 00:00:09]} Ke4 {[%clk 00:00:14]} 48. e6 {[%clk 00:00:39]} c4
{[%clk 00:00:15]} {[%emt 00:00:10]} 49. Rf6 {[%clk 00:00:16]} {[%emt 00:00:19]}
b4 {[%clk 00:00:13]} {[%emt 00:00:07]} 50. Kh4 {[%clk 00:00:18]} Kxf4 {[%clk
00:00:12]} 51. Kh5 {[%clk 00:00:19]} Ke5 {[%clk 00:00:06]} {[%emt 00:00:06]} 52.
Rf7 {[%clk 00:00:20]} Rh8 {[%clk 00:00:05]} {[%emt 00:00:06]} 53. e7 {[%clk
00:00:21]} {[%emt 00:00:05]} Re8 {[%clk 00:00:05]} 54. Kg6 {[%clk 00:00:21]}
Ke6 {[%clk 00:00:04]} {[%emt 00:00:04]} 55. h7 {[%clk 00:00:20]} {[%emt
00:00:05]} f4 {[%clk 00:00:05]} 56. Rxf4 {[%clk 00:00:20]} Kd5 {[%emt
00:00:13]} 1-0

[Event "MČR 2022 blesk"]
[Site "Turnov, Czech Republic"]
[Date "2022.09.10"]
[Round "11.6"]
[White "Roubalik, Jakub"]
[Black "Postupa, Pavel"]
[Result "0-1"]
[TimeControl "2x 3 min + 2s/move"]
[WhiteElo "2276"]
[BlackElo "2223"]

1. e4 {[%clk 00:03:03]} c5 {[%clk 00:03:03]} 2. c3 {[%clk 00:03:04]} e6 {[%clk
00:02:59]} 3. Nf3 {[%clk 00:02:59]} d5 {[%clk 00:02:52]} 4. e5 {[%clk
00:03:00]} Nc6 {[%clk 00:02:47]} 5. d4 {[%clk 00:03:01]} Qb6 {[%clk 00:02:44]}
6. Bd3 {[%clk 00:03:01]} Bd7 {[%clk 00:02:42]} 7. O-O {[%clk 00:03:01]} cxd4
{[%clk 00:02:33]} 8. Re1 {[%clk 00:03:02]} Rc8 {[%clk 00:02:17]} 9. h4 {[%clk
00:02:59]} Nh6 {[%clk 00:01:52]} 10. a3 {[%clk 00:02:40]} Ng4 {[%clk 00:01:47]}
11. Qe2 {[%clk 00:01:14]} dxc3 {[%clk 00:01:23]} 12. Nxc3 {[%clk 00:01:08]} Bc5
{[%clk 00:01:23]} 13. Rf1 {[%clk 00:00:53]} Be7 {[%clk 00:01:05]} 14. Bf4
{[%clk 00:00:27]} h5 {[%clk 00:00:52]} 15. Rac1 {[%clk 00:00:23]} Nd4 {[%clk
00:00:44]} 16. Nxd4 {[%clk 00:00:19]} Qxd4 {[%clk 00:00:45]} 17. Bg3 {[%clk
00:00:18]} a6 {[%clk 00:00:37]} 18. Rfd1 {[%clk 00:00:18]} Qb6 {[%clk
00:00:36]} 19. b4 {[%clk 00:00:13]} O-O {[%clk 00:00:26]} 20. Bb1 {[%clk
00:00:06]} Rc4 {[%clk 00:00:19]} 21. Bd3 {[%clk 00:00:05]} Rc7 {[%clk
00:00:18]} 22. Rc2 {[%clk 00:00:05]} Rfc8 {[%clk 00:00:19]} 23. Rdc1 {[%clk
00:00:07]} g6 {[%clk 00:00:16]} 24. Kf1 {[%clk 00:00:05]} Qd4 {[%clk 00:00:14]}
25. Nd1 {[%clk 00:00:04]} Rxc2 {[%clk 00:00:14]} {[%emt 00:01:08]} 26. Rxc2
{[%clk 00:00:05]} Rxc2 {[%clk 00:00:15]} 27. Bxc2 {[%clk 00:00:05]} Bf8 {[%clk
00:00:13]} 28. Bd3 {[%clk 00:00:05]} Bg7 {[%clk 00:00:14]} {[%emt 00:00:08]} 29.
f4 {[%clk 00:00:03]} Ba4 {[%clk 00:00:12]} 30. Nf2 {[%clk 00:00:04]} Ne3+
{[%clk 00:00:11]} 31. Kg1 {[%clk 00:00:05]} Nf5 {[%clk 00:00:12]} {[%emt
00:00:05]} 32. Bh2 {[%clk 00:00:05]} Nxh4 {[%clk 00:00:13]} 33. g3 {[%clk
00:00:05]} Nf5 {[%clk 00:00:14]} 34. Kg2 {[%clk 00:00:06]} Bc6 {[%clk
00:00:14]} 35. Bg1 {[%clk 00:00:06]} {[%emt 00:00:05]} Qe3 {[%clk 00:00:13]} 36.
Qxe3 {[%clk 00:00:07]} Nxe3+ {[%clk 00:00:14]} 37. Kf3 {[%clk 00:00:08]} Nf5
{[%clk 00:00:16]} 38. Bh2 {[%clk 00:00:06]} {[%emt 00:00:04]} Kf8 {[%clk
00:00:16]} 39. Ke2 {[%clk 00:00:07]} Ke7 {[%clk 00:00:17]} 40. Nd1 {[%clk
00:00:07]} Kd7 {[%clk 00:00:17]} 41. Nc3 {[%clk 00:00:08]} {[%emt 00:00:11]}
Nd4+ {[%clk 00:00:16]} 42. Kf2 {[%clk 00:00:07]} Nf5 {[%clk 00:00:17]} 43. Ke2
{[%clk 00:00:08]} Bh6 {[%clk 00:00:18]} 44. Kf2 {[%clk 00:00:07]} {[%emt
00:00:05]} Bg7 {[%clk 00:00:18]} 45. Bxf5 {[%clk 00:00:08]} gxf5 {[%clk
00:00:18]} 46. Ke3 {[%clk 00:00:06]} f6 {[%clk 00:00:18]} 47. Kd4 {[%clk
00:00:07]} {[%emt 00:00:04]} fxe5+ {[%clk 00:00:17]} 48. fxe5 {[%clk 00:00:08]}
Bh6 {[%clk 00:00:13]} 49. Ne2 {[%clk 00:00:08]} Bb5 {[%clk 00:00:14]} 50. Nf4
{[%clk 00:00:09]} {[%emt 00:00:37]} Bxf4 {[%clk 00:00:13]} 51. gxf4 {[%clk
00:00:10]} Kc6 {[%clk 00:00:13]} 52. Bg3 {[%clk 00:00:09]} Bf1 {[%clk
00:00:14]} 53. Bh4 {[%clk 00:00:08]} Kb5 {[%clk 00:00:15]} 54. Kc3 {[%clk
00:00:09]} Ka4 {[%clk 00:00:16]} 55. Kb2 {[%clk 00:00:05]} d4 {[%clk 00:00:16]}
56. Bf2 {[%clk 00:00:04]} d3 {[%clk 00:00:17]} {[%emt 00:00:08]} 57. Be3 {[%clk
00:00:04]} h4 {[%clk 00:00:17]} 58. b5 {[%clk 00:00:03]} axb5 {[%clk 00:00:16]}
0-1

[Event "MČR 2022 blesk"]
[Site "Turnov, Czech Republic"]
[Date "2022.09.10"]
[Round "11.8"]
[White "Pisk, Petr"]
[Black "Vicar, Petr"]
[Result "1-0"]
[TimeControl "2x 3 min + 2s/move"]
[WhiteElo "2312"]
[BlackElo "2064"]

1. d4 {[%clk 00:03:01]} {[%emt 00:00:07]} Nf6 {[%clk 00:03:03]} 2. Bg5 {[%clk
00:03:02]} g6 {[%clk 00:03:04]} {[%emt 00:00:08]} 3. Bxf6 {[%clk 00:03:03]}
exf6 {[%clk 00:03:05]} 4. e3 {[%clk 00:03:03]} Bg7 {[%clk 00:03:06]} {[%emt
00:00:05]} 5. g3 {[%clk 00:03:04]} O-O {[%clk 00:03:02]} 6. Bg2 {[%clk
00:03:05]} d5 {[%clk 00:02:48]} {[%emt 00:00:19]} 7. Ne2 {[%clk 00:03:04]} c6
{[%clk 00:02:45]} {[%emt 00:00:05]} 8. O-O {[%clk 00:03:03]} {[%emt 00:00:05]}
Bf5 {[%clk 00:02:42]} {[%emt 00:00:05]} 9. Nd2 {[%clk 00:03:02]} {[%emt
00:00:08]} Qd7 {[%clk 00:02:27]} {[%emt 00:00:10]} 10. c4 {[%clk 00:03:01]}
{[%emt 00:00:06]} dxc4 {[%clk 00:02:23]} {[%emt 00:00:04]} 11. Nxc4 {[%clk
00:03:00]} {[%emt 00:00:04]} Bh3 {[%clk 00:02:16]} {[%emt 00:00:07]} 12. Bxh3
{[%clk 00:02:36]} {[%emt 00:00:25]} Qxh3 {[%clk 00:02:16]} {[%emt 00:00:19]} 13.
Qb3 {[%clk 00:02:35]} Qd7 {[%clk 00:02:15]} 14. a4 {[%clk 00:02:25]} {[%emt
00:00:08]} Na6 {[%clk 00:02:11]} 15. Nc3 {[%clk 00:02:13]} {[%emt 00:00:13]}
Rfe8 {[%clk 00:01:58]} {[%emt 00:00:19]} 16. Rfd1 {[%clk 00:02:12]} Rad8 {[%clk
00:01:56]} {[%emt 00:00:05]} 17. Nd2 {[%clk 00:02:08]} {[%emt 00:00:06]} f5
{[%clk 00:01:50]} {[%emt 00:00:13]} 18. Nf3 {[%clk 00:02:07]} Qc7 {[%clk
00:01:46]} {[%emt 00:00:05]} 19. Qc4 {[%clk 00:02:04]} {[%emt 00:00:04]} c5
{[%clk 00:01:38]} {[%emt 00:00:09]} 20. d5 {[%clk 00:01:58]} {[%emt 00:00:08]}
Nb4 {[%clk 00:01:31]} {[%emt 00:00:09]} 21. Nb5 {[%clk 00:01:50]} {[%emt
00:00:16]} Qb6 {[%clk 00:01:23]} {[%emt 00:00:07]} 22. a5 {[%clk 00:01:47]}
{[%emt 00:00:04]} Qf6 {[%clk 00:01:03]} {[%emt 00:00:19]} 23. Qxc5 {[%clk
00:01:44]} {[%emt 00:00:09]} Qxb2 {[%clk 00:00:38]} {[%emt 00:00:24]} 24. Rab1
{[%clk 00:01:43]} {[%emt 00:00:05]} Rxd5 {[%clk 00:00:38]} {[%emt 00:00:09]} 25.
Rxb2 {[%clk 00:01:04]} {[%emt 00:00:34]} Rxd1+ {[%clk 00:00:12]} {[%emt
00:00:30]} 26. Kg2 {[%clk 00:01:05]} Bxb2 {[%clk 00:00:10]} 27. Qxb4 {[%clk
00:01:05]} {[%emt 00:00:06]} Bg7 {[%clk 00:00:07]} {[%emt 00:00:05]} 28. Nxa7
{[%clk 00:01:04]} {[%emt 00:00:07]} Ra1 {[%clk 00:00:05]} 29. Nb5 {[%clk
00:01:01]} {[%emt 00:00:05]} Ra8 {[%clk 00:00:03]} {[%emt 00:00:05]} 30. Nbd4
{[%clk 00:01:01]} R8xa5 {[%emt 00:00:04]} 31. Qxb7 {[%emt 00:00:05]} R5a2
{[%clk 00:03:02]} {[%emt 00:00:05]} 1-0

[Event "MČR 2022 blesk"]
[Site "Turnov, Czech Republic"]
[Date "2022.09.10"]
[Round "12.1"]
[White "Lajbl, Jan"]
[Black "Plat, Vojtech"]
[Result "0-1"]
[TimeControl "2x 3 min + 2s/move"]
[WhiteElo "1969"]
[BlackElo "2484"]

1. e4 {[%clk 00:03:04]} d6 {[%clk 00:03:04]} 2. d4 Nf6 {[%clk 00:03:05]} 3. Nc3
{[%emt 00:00:05]} e5 4. Nge2 {[%clk 00:03:08]} exd4 {[%clk 00:03:07]} 5. Nxd4
{[%clk 00:03:08]} Be7 {[%clk 00:03:09]} 6. Bf4 {[%clk 00:03:09]} c6 {[%clk
00:03:10]} {[%emt 00:00:05]} 7. Qd2 {[%clk 00:03:09]} b5 {[%clk 00:03:11]} 8.
a3 {[%clk 00:03:09]} O-O {[%clk 00:03:11]} 9. O-O-O {[%clk 00:03:09]} a5 {[%clk
00:03:12]} 10. f3 {[%clk 00:02:21]} {[%emt 00:00:08]} b4 {[%clk 00:03:14]} 11.
axb4 {[%clk 00:02:22]} axb4 {[%clk 00:03:15]} 12. Nb1 {[%clk 00:02:22]} c5
{[%clk 00:03:08]} {[%emt 00:00:12]} 13. Nb5 {[%clk 00:02:16]} Ra1 {[%clk
00:03:08]} 14. Bxd6 {[%clk 00:02:10]} Be6 {[%clk 00:03:00]} 15. b3 {[%clk
00:01:54]} Bxd6 {[%clk 00:02:47]} {[%emt 00:00:34]} 16. Qxd6 {[%clk 00:01:51]}
Qa5 {[%clk 00:02:49]} 17. Bd3 {[%clk 00:01:16]} Nbd7 {[%clk 00:02:30]} 18. Kd2
{[%clk 00:01:08]} {[%emt 00:00:04]} c4 {[%clk 00:02:13]} 19. bxc4 {[%clk
00:01:01]} Nb6 {[%clk 00:02:04]} 20. Ke3 {[%clk 00:00:24]} Bxc4 {[%clk
00:01:56]} 21. Nd4 {[%clk 00:00:23]} {[%emt 00:00:04]} Ra2 {[%clk 00:01:11]} 22.
Nd2 {[%clk 00:00:21]} Bxd3 {[%clk 00:01:03]} 23. cxd3 {[%clk 00:00:18]} Re8
{[%clk 00:01:04]} {[%emt 00:01:12]} 24. N2b3 {[%clk 00:00:11]} Nbd5+ {[%clk
00:01:04]} 0-1

[Event "MČR 2022 blesk"]
[Site "Turnov, Czech Republic"]
[Date "2022.09.10"]
[Round "12.8"]
[White "Papay, Jindrich"]
[Black "Pisk, Petr"]
[Result "0-1"]
[TimeControl "2x 3 min + 2s/move"]
[WhiteElo "1798"]
[BlackElo "2312"]

1. c4 {[%clk 00:03:02]} Nf6 {[%clk 00:03:03]} 2. g3 {[%clk 00:03:03]} g6 {[%clk
00:03:03]} 3. Bg2 {[%clk 00:03:04]} Bg7 {[%clk 00:03:04]} 4. Nc3 {[%clk
00:03:05]} c5 {[%clk 00:03:03]} 5. Nf3 {[%clk 00:03:05]} O-O {[%clk 00:03:03]}
{[%emt 00:01:12]} 6. O-O {[%clk 00:03:05]} {[%emt 00:00:08]} Nc6 {[%clk
00:03:04]} 7. d4 {[%clk 00:03:06]} cxd4 {[%clk 00:02:57]} 8. Nxd4 {[%clk
00:03:07]} Nxd4 {[%clk 00:02:57]} {[%emt 00:00:04]} 9. Qxd4 {[%clk 00:03:08]}
d6 {[%clk 00:02:52]} 10. Qd3 {[%clk 00:03:09]} a6 {[%clk 00:02:52]} 11. Be3
{[%clk 00:02:48]} {[%emt 00:00:05]} Qc7 {[%clk 00:02:51]} 12. Rac1 {[%clk
00:02:44]} Bf5 {[%clk 00:02:47]} 13. Qd2 {[%clk 00:02:35]} Rac8 {[%clk
00:02:45]} 14. b3 {[%clk 00:02:32]} {[%emt 00:00:04]} Rfe8 {[%clk 00:02:22]} 15.
Rfd1 {[%clk 00:02:33]} Ng4 {[%clk 00:02:12]} 16. Bd4 {[%clk 00:02:24]} Bxd4
{[%clk 00:02:06]} 17. Qxd4 {[%clk 00:02:24]} Nf6 {[%clk 00:02:06]} {[%emt
00:00:05]} 18. h3 {[%clk 00:02:08]} Bd7 {[%clk 00:02:06]} 19. Kh2 {[%clk
00:01:58]} Bc6 {[%clk 00:02:05]} 20. Nd5 {[%clk 00:01:55]} {[%emt 00:01:00]}
Bxd5 {[%clk 00:01:58]} 21. Bxd5 {[%clk 00:01:46]} b6 {[%clk 00:01:52]} 22. Bg2
{[%clk 00:01:43]} Qc5 {[%clk 00:01:51]} 23. Bb7 {[%clk 00:01:24]} {[%emt
00:00:09]} Qxd4 {[%clk 00:01:43]} 24. Rxd4 {[%clk 00:01:25]} Rc7 {[%clk
00:01:44]} 25. Bxa6 {[%clk 00:01:26]} Ra8 {[%clk 00:01:44]} 26. Bb5 {[%clk
00:01:21]} Rxa2 {[%clk 00:01:45]} 27. Re1 {[%clk 00:01:14]} Rb2 {[%clk
00:01:34]} 28. Rd3 {[%clk 00:01:09]} Ne4 {[%clk 00:01:34]} 29. Kg2 {[%clk
00:01:05]} {[%emt 00:00:13]} Nc5 {[%clk 00:01:35]} 30. Re3 {[%clk 00:01:05]}
Nxb3 {[%clk 00:01:27]} 31. Rd1 {[%clk 00:01:01]} Na5 {[%clk 00:01:25]} {[%emt
00:01:06]} 32. Rd4 {[%clk 00:00:56]} Kf8 {[%clk 00:01:24]} 0-1

[Event "MČR 2022 blesk"]
[Site "Turnov, Czech Republic"]
[Date "2022.09.10"]
[Round "13.1"]
[White "Plat, Vojtech"]
[Black "Vitak, Jiri"]
[Result "1-0"]
[TimeControl "2x 3 min + 2s/move"]
[WhiteElo "2484"]
[BlackElo "2043"]

1. e4 {[%clk 00:03:02]} c5 {[%clk 00:03:03]} 2. Nf3 {[%clk 00:03:03]} {[%emt
00:00:05]} d6 {[%clk 00:03:05]} 3. d4 {[%clk 00:03:04]} cxd4 {[%clk 00:03:06]}
4. Qxd4 {[%clk 00:03:04]} a6 {[%clk 00:03:07]} {[%emt 00:00:15]} 5. e5 {[%clk
00:03:05]} Nc6 {[%clk 00:03:07]} 6. Qa4 {[%clk 00:03:06]} e6 {[%clk 00:02:55]}
{[%emt 00:00:07]} 7. exd6 {[%clk 00:03:06]} {[%emt 00:00:04]} Bxd6 {[%clk
00:02:56]} 8. Nc3 {[%clk 00:03:08]} Nf6 {[%clk 00:02:48]} {[%emt 00:00:06]} 9.
Bg5 {[%clk 00:03:07]} {[%emt 00:00:11]} Be7 {[%clk 00:02:41]} {[%emt 00:00:04]}
10. Rd1 {[%clk 00:03:05]} {[%emt 00:00:04]} Qb6 {[%clk 00:02:36]} {[%emt
00:00:04]} 11. Qb3 {[%clk 00:03:03]} {[%emt 00:00:12]} Qxb3 {[%clk 00:02:35]}
12. axb3 {[%clk 00:03:04]} Bd7 {[%clk 00:02:27]} {[%emt 00:00:06]} 13. Bd3
{[%clk 00:03:01]} {[%emt 00:00:05]} Rd8 {[%clk 00:02:24]} {[%emt 00:00:05]} 14.
O-O {[%clk 00:03:01]} h6 {[%clk 00:02:22]} {[%emt 00:00:11]} 15. Be3 {[%clk
00:02:59]} O-O {[%clk 00:02:17]} {[%emt 00:00:06]} 16. Bb6 {[%clk 00:02:53]}
{[%emt 00:00:12]} Rc8 {[%clk 00:02:18]} 17. Bc4 {[%clk 00:02:41]} {[%emt
00:00:15]} Nb8 {[%clk 00:02:16]} 18. Ne5 {[%clk 00:02:37]} {[%emt 00:00:05]}
Bc6 {[%clk 00:02:12]} {[%emt 00:00:10]} 19. Rfe1 {[%clk 00:02:33]} {[%emt
00:00:05]} Nbd7 {[%clk 00:02:05]} {[%emt 00:00:07]} 20. Nxc6 {[%clk 00:02:27]}
{[%emt 00:00:07]} Rxc6 {[%clk 00:02:05]} {[%emt 00:00:05]} 21. Bd4 {[%clk
00:02:27]} b5 {[%clk 00:01:57]} {[%emt 00:00:11]} 22. Be2 {[%clk 00:02:23]}
{[%emt 00:00:04]} e5 {[%clk 00:01:38]} {[%emt 00:00:22]} 23. Be3 {[%clk
00:02:22]} {[%emt 00:00:06]} Bb4 {[%clk 00:01:39]} 24. Bd2 {[%clk 00:02:06]}
{[%emt 00:00:15]} Nc5 {[%clk 00:01:06]} {[%emt 00:00:40]} 25. Bf3 {[%clk
00:02:02]} {[%emt 00:00:04]} Rcc8 {[%clk 00:00:51]} {[%emt 00:00:15]} 26. Rxe5
{[%clk 00:02:00]} {[%emt 00:00:06]} Rfd8 {[%clk 00:00:50]} {[%emt 00:00:05]} 27.
Ree1 {[%clk 00:02:00]} Ne6 {[%clk 00:00:47]} {[%emt 00:00:05]} 28. Bb7 {[%clk
00:01:55]} {[%emt 00:00:10]} Rb8 {[%clk 00:00:44]} {[%emt 00:00:05]} 29. Bf3
{[%clk 00:01:13]} {[%emt 00:00:44]} Nd4 {[%clk 00:00:45]} 30. Bf4 {[%clk
00:01:11]} {[%emt 00:00:07]} Nxf3+ 31. gxf3 {[%clk 00:01:12]} Rxd1 {[%clk
00:00:33]} 32. Rxd1 {[%clk 00:01:13]} Rc8 {[%clk 00:00:34]} 33. Be5 {[%clk
00:01:10]} {[%emt 00:00:07]} Bxc3 {[%clk 00:00:25]} {[%emt 00:00:08]} 34. Bxc3
{[%clk 00:00:53]} {[%emt 00:00:27]} Rc6 {[%clk 00:00:25]} 35. Rd8+ {[%clk
00:00:48]} {[%emt 00:00:05]} Kh7 {[%clk 00:00:27]} 36. Kf1 {[%clk 00:00:49]}
Kg6 {[%clk 00:00:24]} {[%emt 00:00:09]} 37. Ke2 {[%clk 00:00:48]} Kf5 {[%clk
00:00:19]} {[%emt 00:00:05]} 38. Rf8 {[%clk 00:00:43]} {[%emt 00:00:05]} Ke6
{[%clk 00:00:19]} {[%emt 00:00:11]} 39. Ra8 {[%clk 00:00:38]} g6 {[%clk
00:00:18]} {[%emt 00:00:04]} 40. Bxf6 {[%clk 00:00:35]} {[%emt 00:00:09]} Kxf6
{[%clk 00:00:19]} 41. c3 {[%clk 00:00:36]} Ke5 {[%clk 00:00:18]} {[%emt
00:00:04]} 42. Ke3 {[%clk 00:00:36]} Rd6 {[%clk 00:00:14]} {[%emt 00:00:13]} 43.
f4+ {[%clk 00:00:38]} Kf5 {[%clk 00:00:14]} 44. c4 {[%clk 00:00:36]} bxc4
{[%clk 00:00:14]} {[%emt 00:00:09]} 45. bxc4 {[%clk 00:00:37]} Rb6 {[%clk
00:00:15]} 46. c5 {[%clk 00:00:26]} {[%emt 00:00:06]} Rxb2 {[%clk 00:00:16]} 47.
c6 {[%clk 00:00:27]} {[%emt 00:00:04]} Rc2 {[%clk 00:00:13]} {[%emt 00:00:06]}
48. Rxa6 {[%clk 00:00:28]} Rc3+ {[%clk 00:00:13]} 49. Kd4 {[%clk 00:00:30]} Rc1
{[%clk 00:00:14]} {[%emt 00:00:08]} 50. Kd5 {[%clk 00:00:29]} Kxf4 {[%emt
00:00:09]} 51. Ra4+ Kf3 {[%clk 00:00:12]} 52. Rc4 {[%clk 00:00:32]} Rd1+ {[%clk
00:00:12]} 53. Ke5 {[%clk 00:00:33]} Rd8 {[%clk 00:00:13]} 54. Kf6 {[%clk
00:00:31]} {[%emt 00:00:35]} g5 {[%clk 00:00:14]} 55. Rc2 {[%clk 00:00:32]} g4
{[%clk 00:00:14]} 56. Kxf7 {[%clk 00:00:33]} h5 {[%clk 00:00:15]} 57. Kg6
{[%clk 00:00:32]} h4 {[%clk 00:00:16]} 58. Kg5 {[%clk 00:00:32]} h3 {[%clk
00:00:17]} 59. Rc3+ {[%clk 00:00:33]} Kxf2 {[%clk 00:00:18]} 60. Kxg4 {[%clk
00:00:34]} Kg2 {[%clk 00:00:16]} 61. Rc2+ {[%clk 00:00:35]} Kg1 {[%clk
00:00:15]} 62. Kxh3 {[%clk 00:00:36]} 1-0